Cogmind - Beta 13 @@@ ROGUE MODE // 2024.03.03 @ 08:47:24 Player: TheSlyFawkes Result: Destroyed by BM-73A(R) with Subdweller Laser Performance ------------- Evolutions (0) 0 Regions Visited (2) 400 Robots Destroyed (18) 90 Value Destroyed (424) 424 Prototype IDs (3) 60 Alien Tech Used (0) 0 Bonus (0) 0 TOTAL SCORE: 974 Bonus ------- None Cogmind --------- Core Integrity 0/250 Matter 95/300 Energy 100/100 System Corruption 0% Temperature Cool (6) Movement Core (100) Ox1 Location -10/Subcaves Parts ------- > --- POWER (1) -------- (None) > --- PROPULSION (2) --- (None) > --- UTILITY (2) ------ Small Storage Unit > --- WEAPON (2) ------- (None) > --- INVENTORY (8) ---- Heavy Ion Engine Aluminum Leg Aluminum Leg Light Armor Plating Scrap Shield EM Pulse Gun Peak State ------------ > --- POWER ------------ Heavy Ion Engine > --- PROPULSION ------- Armored Wheel Armored Wheel > --- UTILITY ---------- Small Storage Unit Visual Processing Unit > --- WEAPON ----------- EM Pulse Gun Rocket Launcher > --- INVENTORY -------- Heavy Ion Engine Light Treads Light Treads Aluminum Leg Aluminum Leg Compact Wheel EM Pulse Gun Rocket Launcher [Rating: 14] Favorites ----------- Power Heavy Ion Engine Engine Heavy Ion Engine Propulsion Light Treads Treads Light Treads Wheel Compact Wheel Utility Small Storage Unit Device Subdweller Optics Storage Small Storage Unit Processor Visual Processing Unit Weapon Rocket Launcher Energy Gun EM Pulse Gun Ballistic Gun Light Assault Rifle Launcher Rocket Launcher Build | -11 -10 -10 ------- Run | Yrd Mat Sub Slots Evolved . | . . . Power . | . . . Propulsion . | . . . Utility . | . . . Weapon . | . . . Parts Attached 16 | 6 6 4 Power 2 | 1 1 . Engine 2 | 1 1 . Core . | . . . Reactor . | . . . Propulsion 7 | 2 3 2 Treads 2 | . . 2 Leg . | . . . Wheel 5 | 2 3 . Hover . | . . . Flight . | . . . Utility 3 | 1 1 1 Device 1 | . . 1 Storage 1 | 1 . . Processor 1 | . 1 . Hackware . | . . . Protection . | . . . Artifact . | . . . Weapon 4 | 2 1 1 Energy Gun 1 | 1 . . Energy Cannon . | . . . Ballistic Gun 1 | 1 . . Ballistic Cannon . | . . . Launcher 2 | . 1 1 Special Weapon . | . . . Impact Weapon . | . . . Slashing Weapon . | . . . Piercing Weapon . | . . . Special Melee Weapon . | . . . Unidentified Prototypes 1 | . 1 . Parts Lost 7 | . 1 6 Power 2 | . 1 1 Propulsion 2 | . . 2 Utility . | . . . Weapon 3 | . . 3 Highest Loss Streak 4 | . 1 4 To Critical Strikes 1 | . . 1 Average Slot Usage (%) 82 | . 92 71 Engine 12 | . 13 10 Treads 10 | . . 21 Wheel 14 | . 28 . Device 2 | . . 4 Storage 14 | . 14 14 Processor 5 | . 7 3 Energy Gun 9 | . 14 4 Launcher 11 | . 12 10 Naked Turns . | . . . Heaviest Build 21 | 11 19 21 Greatest Support 40 | 32 32 40 Greatest Overweight (x) 1 | . . 1 Average Overweight (x) . | . . . Largest Inventory Capacity 8 | 8 8 8 Average Capacity 7 | 6 8 8 Most Carried 8 | 6 8 8 Average Carried 7 | 3 7 7 Final Capacity 8 | 8 8 8 Final Carried 8 | 6 8 7 Class Distribution -------------------- 100% | Mutant Dominant Class ---------------- Mutant | -10/Materials Mutant | -10/Subcaves Resources | -11 -10 -10 ----------- Run | Yrd Mat Sub Matter Collected 405 | 215 82 108 Remotely . | . . . Salvage Created 219 | . 113 106 Parts 12 | . 9 3 Haulers Intercepted . | . . . Recyclers Shooed . | . . . Parts Field Recycled . | . . . Retrieved Matter . | . . . Parts Self-Destructed 9 | . . 9 Prevented . | . . . Kills | -11 -10 -10 ------- Run | Yrd Mat Sub Combat Hostiles Destroyed 14 | . 6 8 Guns 3 | . 3 . AOE 11 | . 3 8 Classes Destroyed 4 | . 3 1 Worker 2 | . 2 . Watcher 2 | . 2 . Swarmer 6 | . 6 . Subdweller 8 | . . 8 Best Kill Streak 7 | . 4 7 Combat Bots Only 7 | . 3 7 Max Kills in Single Turn 3 | . 3 2 Gunslinging . | . . . Exploded 2 | . 2 2 Melee . | . . . Uniques/NPCs Destroyed . | . . . Combat | -11 -10 -10 -------- Run | Yrd Mat Sub Hostile Shots Fired 64 | . 20 44 Missed 16 | . 7 9 Damage Taken 966 | . 152 814 Core 262 | . 26 236 Absorbed by Shields . | . . . Core Remaining (%) 100 | 100 . . Volleys Fired 30 | . 9 21 Largest 1 | . 1 1 Hottest 40 | . 40 33 Shots Fired 30 | . 9 21 Gun 4 | . 4 . Cannon . | . . . Launcher 26 | . 5 21 Special . | . . . Kinetic . | . . . Thermal . | . . . Explosive 26 | . 5 21 Electromagnetic 4 | . 4 . Robot Hit Streak 3 | . 3 3 Robot Miss Streak 4 | . 3 4 Penetration Max . | . . . Secondary Targets . | . . . Shots Hit Robots 16 | . 5 11 Core Hits 26 | . 12 14 Critical Kills . | . . . Critical Parts Destroyed . | . . . Critical Strikes . | . . . Melee Attacks . | . . . Impact . | . . . Slashing . | . . . Piercing . | . . . Sneak Attacks . | . . . Combat Hostiles . | . . . Follow-up Attacks . | . . . Damage Inflicted 1517 | . 398 1119 Guns 32 | . 32 . Cannons . | . . . Explosions 1467 | . 356 1111 Melee . | . . . Ramming 18 | . 10 8 Kinetic . | . . . Thermal . | . . . Explosive 1467 | . 356 1111 Electromagnetic 32 | . 32 . Impact . | . . . Slashing . | . . . Piercing . | . . . Highest Corruption . | . . . Average Corruption . | . . . Corruption Purged . | . . . Corruption Blocked . | . . . Overload Shots . | . . . Overflow Damage . | . . . Projectiles . | . . . Explosions . | . . . Melee . | . . . Knockbacks . | . . . Impact . | . . . Kinetic . | . . . Secondary . | . . . Self-Inflicted Damage 136 | . 42 94 Shots 5 | . 1 4 Rammed 4 | . 2 2 Targets Rammed 4 | . 2 2 Kicked . | . . . Crushed . | . . . Highest Temperature 6 | . 6 . Average Temperature 3 | . 3 . Received Heat Transfer 90 | . . 90 Siege Activations . | . . . Robots Corrupted . | . . . Combat Hostiles . | . . . Parts Fried . | . . . Impact Corruptions . | . . . Robots Melted . | . . . Combat Hostiles . | . . . Parts Melted . | . . . Heat Transferred . | . . . Parts Sabotaged . | . . . Parts Stolen . | . . . Parts Stripped . | . . . Power Chain Reactions . | . . . Alert | -11 -10 -10 ------- Run | Yrd Mat Sub Peak Influence 161 | . 161 . Initial . | . . . Average 48 | . 53 . Maximum Alert Level . | . . . Low Security (%) 100 | 100 100 . Level 1 . | . . . Level 2 . | . . . Level 3 . | . . . Level 4 . | . . . Level 5 . | . . . High Security . | . . . Max Security . | . . . Squads Dispatched . | . . . Investigation . | . . . Extermination . | . . . Reinforcement . | . . . Assault . | . . . Garrison . | . . . Intercept . | . . . Searches Triggered . | . . . Construction Impeded . | . . . Haulers Reinforced . | . . . Active Scanning Responses . | . . . Cargo Convoy Interrupts . | . . . Stealth | -11 -10 -10 --------- Run | Yrd Mat Sub Distress Signals 1 | . 1 . Communications Jammed . | . . . Distress Signals . | . . . Times Spotted 24 | . 13 11 Peak Tracking Total 7 | . 4 7 Tactical Retreats . | . . . Traps | -11 -10 -10 ------- Run | Yrd Mat Sub Traps Triggered . | . . . Indirectly . | . . . Trap Hack Attempts . | . . . Triggered . | . . . Disarmed 3 | . 3 . Reprogrammed . | . . . Reused . | . . . Traps Extracted . | . . . Installed . | . . . Triggered . | . . . Machines | -11 -10 -10 ---------- Run | Yrd Mat Sub Machines Disabled 1 | . 1 . Max in Single Turn 1 | . 1 . Machines Repaired . | . . . Machines Dismantled . | . . . Machines Sabotaged . | . . . Overloaded Fab Kills . | . . . Hacking | -11 -10 -10 --------- Run | Yrd Mat Sub Machines Accessed 6 | . 6 . Terminals 6 | . 6 . Fabricators . | . . . Repair Stations . | . . . Recycling Units . | . . . Scanalyzers . | . . . Garrison Access . | . . . Total Hacks 14 | . 14 . Successful 8 | . 8 . Failed 6 | . 6 . Catastrophic 1 | . 1 . Database Lockouts . | . . . Manual 9 | . 9 . Terminals 14 | . 14 . Fabricators . | . . . Repair Stations . | . . . Recycling Units . | . . . Scanalyzers . | . . . Garrison Access . | . . . Terminal Hacks 3 | . 3 . Prototype ID Bank 1 | . 1 . Locate Traps 1 | . 1 . Disarm Traps 1 | . 1 . Fabricator Hacks . | . . . Repair Station Hacks . | . . . Recycling Unit Hacks . | . . . Scanalyzer . | . . . Garrison Access Hacks . | . . . Unauthorized Hacks 5 | . 5 . Terminals 5 | . 5 . Botnet 5 | . 5 . Fabricators . | . . . Repair Stations . | . . . Recycling Units . | . . . Scanalyzers . | . . . Garrison Access . | . . . Data Cores Recovered . | . . . Used . | . . . Hacking Detections 6 | . 6 . Full Trace Events . | . . . Feedback Events . | . . . Feedback Blocked . | . . . Robot Schematics Acquired . | . . . Robots Built . | . . . Authchips . | . . . Time . | . . . Total Robot Build Rating . | . . . Part Schematics Acquired . | . . . Parts Built . | . . . Authchips . | . . . Time . | . . . Total Part Build Rating . | . . . Parts Repaired . | . . . Time . | . . . Parts Recycled . | . . . Recycled Matter . | . . . Retrieved Matter . | . . . Retrieved Components . | . . . Parts Scanalyzed . | . . . Part Schematics Acquired . | . . . Parts Damaged . | . . . Bothacking | -11 -10 -10 ------------ Run | Yrd Mat Sub Used RIF Installer . | . . . Robots Hacked . | . . . Non-combat . | . . . Combat . | . . . Robot Hacks Applied . | . . . Relay Couplers Released . | . . . Fabnet Peak Effective % . | . . . Robots Rewired . | . . . Allies Hacked . | . . . Hacks Repelled . | . . . Allies | -11 -10 -10 -------- Run | Yrd Mat Sub Total Allies . | . . . Largest Group . | . . . Highest-Rated Group . | . . . Highest-Rated Ally . | . . . Total Orders . | . . . Ally Attacks . | . . . Total Damage . | . . . Kills . | . . . Allies Corrupted . | . . . Allies Melted . | . . . Intel | -11 -10 -10 ------- Run | Yrd Mat Sub Robot Analysis Total . | . . . Derelict Logs Recovered . | . . . Drone Launches . | . . . Drone Recoveries . | . . . Exploration | -11 -10 -10 ------------- Run | Yrd Mat Sub Turns Passed 1162 | 52 579 531 Spaces Moved 878 | 37 510 331 Core 99 | 1 . 98 Treads 230 | . . 230 Legs . | . . . Wheels 549 | 36 510 3 Hover . | . . . Flight . | . . . Fastest Speed 50 | 50 90 90 Average Speed 112 | 98 94 141 Slowest Speed 160 | 100 100 160 Overloaded Moves . | . . . Propulsion Burnouts . | . . . Robots Hopped . | . . . Cave-ins Triggered . | . . . Exploration Rate (%) 32 | 4 78 16 Regions Visited 2 Branch Regions 1 Pre-discovered Areas . | . . . Known Exits Taken . | . . . Unknown Exits Taken 2 | 1 1 . Scrap Searched 1 | . . 1 Spaces Dug . | . . . Terrain Destroyed 167 | . 40 127 Melee . | . . . Projectile . | . . . AOE 167 | . 40 127 Terrain Rammed . | . . . Walls Destroyed . | . . . Machines Disabled . | . . . Actions | -11 -10 -10 --------- Run | Yrd Mat Sub Total 1020 | 49 599 372 Wait 71 | . 62 9 Move 876 | 36 509 331 Hop . | . . . Pick Up 13 | 7 5 1 Fast Attach 8 | 5 2 1 Attach 4 | 1 2 1 Detach . | . . . Swap 5 | . 3 2 Drop 9 | . 5 4 Fire 30 | . 9 21 Melee . | . . . Ram 3 | . 2 1 Kick . | . . . Crush 1 | . . 1 Escape Stasis . | . . . Rewire . | . . . Trap . | . . . Miscellaneous . | . . . Route ------- -11/Scrapyard -10/Materials (discovered 5 exits: [*Mat x2] / [*Min x2] / [*Sub]) -10/Subcaves History --------- Turn | Location | Event 31 | -11/Scrapyard | Discovered new exit (range 15) 53 | -11/Scrapyard | Entered Materials 304 | -10/Materials | Discovered new exit (range 14) 307 | -10/Materials | Build established: Mutant 405 | -10/Materials | Discovered new exit (range 15) 504 | -10/Materials | Discovered new exit (range 8) 513 | -10/Materials | Discovered new exit (range 16) 567 | -10/Materials | Discovered new exit (range 12) 632 | -10/Materials | Entered Subcaves 752 | -10/Subcaves | Disturbed a concealed Subdweller 786 | -10/Subcaves | Ambushed by swarm of Subdwellers 857 | -10/Subcaves | Destroyed 7 combat bots 889 | -10/Subcaves | A swath of the cavern ceiling suddenly collapsed 1033 | -10/Subcaves | Disturbed a concealed Subdweller 1034 | -10/Subcaves | Core integrity fell below 50% 1095 | -10/Subcaves | Lost 4 parts (1p2n1w) 1100 | -10/Subcaves | Core integrity fell below 20% 1163 | -10/Subcaves | Destroyed by BM-73A(R) with Subdweller Laser Last Messages --------------- Acquired 12 matter. The unstable cave ceiling collapses. BM-73A(R) angrily emerges from the Twisted Machinery. Slammed into BM-73A(R). Lgt. Treads destroyed. Searching scrap... Found Sub. Monowheel. Found Battle Rifle. Found 21 Matter. Acquired 21 matter. BM-73A(R) affixes Scrap Shield Fragment to Scrap Shield. The unstable cave ceiling collapses. Critical hit (Destroy). Hvy. Ion Engine destroyed. Rocket Launcher destroyed. Lgt. Treads destroyed. The unstable cave ceiling collapses. Slammed into BM-73A(R). Map ----- +----------------------------------------------------+ | ??????????????# = #?????????????????????? | | ?????????????## #?????????????????????? | | ?????????????# # ##?????????????????????? | | ?????????????## ######??##??????????????????????? | | ?????????????# ##??????????????????????????????? | | ?????????????## #??????????????????????????????? | | ?????????????## ##??????????????????????????????? | | ?????????????# #???????????????????????????????? | | ?????????????## ##??????????????????????????????? | | ??????????????# ##?????????????????????????????? | | ??????????????# ####??????????????????????????? | | ??????????????# #####??? #?????????????????? | | ?????????????## # ????????????????? | | ?????????????#"" ????????????????? | | ?????????????# " "" ????????????????? | | ?????????????##"" """ ## ## ????????????????? | | ??????????????#""" " ######???#??????????????????? | | ?????????????## """#### #?????###???????????????? | | ?????????????# ""#??# #????## ##??????????????? | | ?????????????# "#### #????# ##?????????????? | | ?????????????# ""##"" ###### #?????????????? | | ?????????????## "" """## ## ##????????????? | | ??????????????## " "" ##???????????? | | ??????????????## "" " " #???????????? | | ??????????????#" " "" ##???????????? | | ??????????????#"""" @ ""### ##????????????? | | ??????????????#"u""" R #"" #?????????????? | | ??????????????# " """### #######???????? | | ??????????????# "##""#?# # & # ##??????? | | ??????????????#""####"#### ## #??????? | | ??????????????# #?## #""# # #??????? | | ??????????????## ##?# #" # ##??????? | | ???????????????###"### # # ### ##?????? | | ?????????????????# #?# #?????? | | ?????????????#??### # ##### #?????? | | ?????????????# ##"#" # # #?## ##????? | | ?????????????# # # # ## # #### #????? | | ?????????????#"& #" =[# #### # ## ###??? | | ?????????????#### ![ ### # ##?? | | ???????????????#! * # ## #### #?? | | ???????????????# # " ##### ##""## #?? | | ???????????????## ## # ""#???# #$"$"# ##?? | | ????????????????###### ## # ###??# #" $$# ##??? | | ?????????????????????# #### #" "## ##### | | ?????????????????????### ## ##"[ # # | | ???????????????????????## ##### = | | ??????????????################ ## # | | ??????????????# # #" | | ??????????????## # #"" | | ??????????????# ## # ##?" | +----------------------------------------------------+ Best States ------------- Heat Dissipation 25 Energy Generation 14 Energy Capacity 280 Matter Stores 255 Matter Capacity 300 Sight Range 21 Terrain Scan Density 10 Evasion (%) 42 Recoil Reduction 2 Item Schematics ----------------- None Robot Schematics ------------------ None Fabricated ------------ Nothing Alien Tech Used ----------------- None Achievements -------------- None Challenges ------------ None Game ------ Seed DirtyStorageFalx Manual? 0 Play Time 00:15:17 Cumulative 33.0 hours Start 2024.03.03 @ 08:33:46 End 2024.03.03 @ 08:47:24 Sessions 1 Manual Loads 0 Difficulty Rogue Special Mode None Game No. 49 Rogue 48 Adventurer 1 Explorer 0 Win Type - Total 0 Types 0/0/0/0/0/0/0/0/0 Lore% 20 Gallery% 26 Achievement% 28 Wizard Run 0 Options --------- Layout 1 ASCII 0 Keyboard 0 Movement Numpad Keybinds 0 Fullscreen 1 Font 24/Smallcaps Map View 50x35 Zoom Use 0% Tactical HUD 0 Map Filters NONE Filters NONE Steam 1 RUN: eaf64ac7-9894-4c94-85f7-c0ee420bfad4